Workbook

Sheet 考生成绩排名
A1: 部门代码 | B1: 部门名称 | C1: 职位代码 | D1: 职位名称 | E1: 计划数 | F1: 笔试成绩 | G1: 姓名 | H1: 准考证号 | I1: 资格复审情况 | J1: 面试成绩 | K1: 总成绩 | L1: 排名 | M1: 进入考察标志
A2: 01 | B2: 宿迁经济技术开发区所属中小学校 | C2: 01 | D2: 小学语文教师 | E2: 8 | F2: 75 | G2: 董紫琼 | H2: 130102010717 | I2: 合格 | J2: 79.94 | K2: =F2*0.4+J2*0.6 -> 77.964 | L2: 1 | M2: K
A3: 01 | B3: 宿迁经济技术开发区所属中小学校 | C3: 01 | D3: 小学语文教师 | E3: 8 | F3: 75 | G3: 鲍彤彤 | H3: 130102010713 | I3: 合格 | J3: 78.88 | K3: 77.328 | L3: 2 | M3: K
A4: 01 | B4: 宿迁经济技术开发区所属中小学校 | C4: 01 | D4: 小学语文教师 | E4: 8 | F4: 73.5 | G4: 郭嘉佳 | H4: 130102010620 | I4: 合格 | J4: 79.12 | K4: 76.872 | L4: 3 | M4: K
A5: 01 | B5: 宿迁经济技术开发区所属中小学校 | C5: 01 | D5: 小学语文教师 | E5: 8 | F5: 71.5 | G5: 陈伊 | H5: 130102010612 | I5: 合格 | J5: 77.46 | K5: 75.076 | L5: 4 | M5: K
A6: 01 | B6: 宿迁经济技术开发区所属中小学校 | C6: 01 | D6: 小学语文教师 | E6: 8 | F6: 75 | G6: 张莹 | H6: 130102010618 | I6: 合格 | J6: 74.46 | K6: 74.676 | L6: 5 | M6: K
A7: 01 | B7: 宿迁经济技术开发区所属中小学校 | C7: 01 | D7: 小学语文教师 | E7: 8 | F7: 71.5 | G7: 梁莹莹 | H7: 130102010616 | I7: 合格 | J7: 76.60 | K7: 74.560 | L7: 6 | M7: K
A8: 01 | B8: 宿迁经济技术开发区所属中小学校 | C8: 01 | D8: 小学语文教师 | E8: 8 | F8: 74.5 | G8: 郑喜庆 | H8: 130102010603 | I8: 合格 | J8: 74.30 | K8: 74.380 | L8: 7 | M8: K
A9: 01 | B9: 宿迁经济技术开发区所属中小学校 | C9: 01 | D9: 小学语文教师 | E9: 8 | F9: 69.5 | G9: 陈蕊 | H9: 130102010712 | I9: 合格 | J9: 76.86 | K9: 73.916 | L9: 8 | M9: K
A10: 01 | B10: 宿迁经济技术开发区所属中小学校 | C10: 01 | D10: 小学语文教师 | E10: 8 | F10: 70.5 | G10: 窦连珍 | H10: 130102010606 | I10: 合格 | J10: 75.34 | K10: 73.404 | L10: 9
A11: 01 | B11: 宿迁经济技术开发区所属中小学校 | C11: 01 | D11: 小学语文教师 | E11: 8 | F11: 68 | G11: 郑然然 | H11: 130102010705 | I11: 合格 | J11: 77.00 | K11: 73.400 | L11: 10
A12: 01 | B12: 宿迁经济技术开发区所属中小学校 | C12: 01 | D12: 小学语文教师 | E12: 8 | F12: 73.5 | G12: 徐欣 | H12: 130102010602 | I12: 合格 | J12: 72.76 | K12: 73.056 | L12: 11
A13: 01 | B13: 宿迁经济技术开发区所属中小学校 | C13: 01 | D13: 小学语文教师 | E13: 8 | F13: 69 | G13: 王梦琪 | H13: 130102010601 | I13: 合格 | J13: 75.54 | K13: 72.924 | L13: 12
A14: 01 | B14: 宿迁经济技术开发区所属中小学校 | C14: 01 | D14: 小学语文教师 | E14: 8 | F14: 70.5 | G14: 高玉 | H14: 130102010710 | I14: 合格 | J14: 73.62 | K14: 72.372 | L14: 13
A15: 01 | B15: 宿迁经济技术开发区所属中小学校 | C15: 01 | D15: 小学语文教师 | E15: 8 | F15: 67.5 | G15: 汪啸 | H15: 130102010614 | I15: 合格 | J15: 75.40 | K15: 72.240 | L15: 14
A16: 01 | B16: 宿迁经济技术开发区所属中小学校 | C16: 01 | D16: 小学语文教师 | E16: 8 | F16: 73 | G16: 孙清华 | H16: 130102010708 | I16: 合格 | J16: 71.68 | K16: 72.208 | L16: 15
A17: 01 | B17: 宿迁经济技术开发区所属中小学校 | C17: 01 | D17: 小学语文教师 | E17: 8 | F17: 68.5 | G17: 朱耀 | H17: 130102010609 | I17: 合格 | J17: 73.18 | K17: 71.308 | L17: 16
A18: 01 | B18: 宿迁经济技术开发区所属中小学校 | C18: 01 | D18: 小学语文教师 | E18: 8 | F18: 67 | G18: 杨易 | H18: 130102010702 | I18: 合格 | J18: 73.86 | K18: 71.116 | L18: 17
A19: 01 | B19: 宿迁经济技术开发区所属中小学校 | C19: 01 | D19: 小学语文教师 | E19: 8 | F19: 64 | G19: 徐希玲 | H19: 130102010716 | I19: 合格 | J19: 74.46 | K19: 70.276 | L19: 18
A20: 01 | B20: 宿迁经济技术开发区所属中小学校 | C20: 01 | D20: 小学语文教师 | E20: 8 | F20: 66.5 | G20: 周莎莎 | H20: 130102010704 | I20: 合格 | J20: 72.20 | K20: 69.920 | L20: 19
A21: 01 | B21: 宿迁经济技术开发区所属中小学校 | C21: 01 | D21: 小学语文教师 | E21: 8 | F21: 64.5 | G21: 王雨萌 | H21: 130102010719 | I21: 合格 | J21: 70.40 | K21: 68.040 | L21: 20
A22: 01 | B22: 宿迁经济技术开发区所属中小学校 | C22: 01 | D22: 小学语文教师 | E22: 8 | F22: 68 | G22: 刘晓晴 | H22: 130102010701 | I22: 合格 | K22: 缺考 | L22: 21
A23: 01 | B23: 宿迁经济技术开发区所属中小学校 | C23: 01 | D23: 小学语文教师 | E23: 8 | F23: 67 | G23: 聂瑞瑞 | H23: 130102010610 | I23: 合格 | K23: 缺考 | L23: 22
A24: 01 | B24: 宿迁经济技术开发区所属中小学校 | C24: 01 | D24: 小学语文教师 | E24: 8 | F24: 66 | G24: 矫豪桢 | H24: 130102010703 | I24: 合格 | K24: 缺考 | L24: 23
A25: 01 | B25: 宿迁经济技术开发区所属中小学校 | C25: 01 | D25: 小学语文教师 | E25: 8 | F25: 65.5 | G25: 赵梦 | H25: 130102010714 | I25: 合格 | K25: 缺考 | L25: 24
A26: 01 | B26: 宿迁经济技术开发区所属中小学校 | C26: 02 | D26: 小学语文教师 | E26: 9 | F26: 77 | G26: 叶敬双 | H26: 130102011002 | I26: 合格 | J26: 86.00 | K26: =F26*0.4+J26*0.6 -> 82.400 | L26: 1 | M26: K
A27: 01 | B27: 宿迁经济技术开发区所属中小学校 | C27: 02 | D27: 小学语文教师 | E27: 9 | F27: 76 | G27: 李棒棒 | H27: 130102010813 | I27: 合格 | J27: 77.46 | K27: 76.876 | L27: 2 | M27: K
A28: 01 | B28: 宿迁经济技术开发区所属中小学校 | C28: 02 | D28: 小学语文教师 | E28: 9 | F28: 73.5 | G28: 柳启惠 | H28: 130102010817 | I28: 合格 | J28: 78.72 | K28: 76.632 | L28: 3 | M28: K
A29: 01 | B29: 宿迁经济技术开发区所属中小学校 | C29: 02 | D29: 小学语文教师 | E29: 9 | F29: 63 | G29: 曹倩倩 | H29: 130102010804 | I29: 合格 | J29: 83.10 | K29: 75.060 | L29: 4 | M29: K
A30: 01 | B30: 宿迁经济技术开发区所属中小学校 | C30: 02 | D30: 小学语文教师 | E30: 9 | F30: 74.5 | G30: 王维洁 | H30: 130102010815 | I30: 合格 | J30: 74.80 | K30: 74.680 | L30: 5 | M30: K
A31: 01 | B31: 宿迁经济技术开发区所属中小学校 | C31: 02 | D31: 小学语文教师 | E31: 9 | F31: 69.5 | G31: 蒋尚宏 | H31: 130102010802 | I31: 合格 | J31: 76.16 | K31: 73.496 | L31: 6 | M31: K
A32: 01 | B32: 宿迁经济技术开发区所属中小学校 | C32: 02 | D32: 小学语文教师 | E32: 9 | F32: 66 | G32: 闫奕霏 | H32: 130102010911 | I32: 合格 | J32: 77.60 | K32: 72.960 | L32: 7 | M32: K
A33: 01 | B33: 宿迁经济技术开发区所属中小学校 | C33: 02 | D33: 小学语文教师 | E33: 9 | F33: 70 | G33: 韩婷 | H33: 130102010809 | I33: 合格 | J33: 74.40 | K33: 72.640 | L33: 8 | M33: K
A34: 01 | B34: 宿迁经济技术开发区所属中小学校 | C34: 02 | D34: 小学语文教师 | E34: 9 | F34: 68.5 | G34: 吴峻楠 | H34: 130102010914 | I34: 合格 | J34: 75.24 | K34: 72.544 | L34: 9 | M34: K
A35: 01 | B35: 宿迁经济技术开发区所属中小学校 | C35: 02 | D35: 小学语文教师 | E35: 9 | F35: 67.5 | G35: 王沙沙 | H35: 130102010812 | I35: 合格 | J35: 75.80 | K35: 72.480 | L35: 10
A36: 01 | B36: 宿迁经济技术开发区所属中小学校 | C36: 02 | D36: 小学语文教师 | E36: 9 | F36: 68 | G36: 周文静 | H36: 130102011001 | I36: 合格 | J36: 75.40 | K36: 72.440 | L36: 11
A37: 01 | B37: 宿迁经济技术开发区所属中小学校 | C37: 02 | D37: 小学语文教师 | E37: 9 | F37: 69.5 | G37: 余旭廷 | H37: 130102010819 | I37: 合格 | J37: 74.22 | K37: 72.332 | L37: 12
A38: 01 | B38: 宿迁经济技术开发区所属中小学校 | C38: 02 | D38: 小学语文教师 | E38: 9 | F38: 72 | G38: 张媛媛 | H38: 130102010910 | I38: 合格 | J38: 71.96 | K38: 71.976 | L38: 13
A39: 01 | B39: 宿迁经济技术开发区所属中小学校 | C39: 02 | D39: 小学语文教师 | E39: 9 | F39: 66 | G39: 毛唯一 | H39: 130102010807 | I39: 合格 | J39: 75.36 | K39: 71.616 | L39: 14
A40: 01 | B40: 宿迁经济技术开发区所属中小学校 | C40: 02 | D40: 小学语文教师 | E40: 9 | F40: 68 | G40: 周利香 | H40: 130102010816 | I40: 合格 | J40: 73.72 | K40: 71.432 | L40: 15
A41: 01 | B41: 宿迁经济技术开发区所属中小学校 | C41: 02 | D41: 小学语文教师 | E41: 9 | F41: 59 | G41: 郭旭 | H41: 130102010903 | I41: 合格 | J41: 79.44 | K41: 71.264 | L41: 16
A42: 01 | B42: 宿迁经济技术开发区所属中小学校 | C42: 02 | D42: 小学语文教师 | E42: 9 | F42: 65 | G42: 姜敏 | H42: 130102010806 | I42: 合格 | J42: 75.34 | K42: 71.204 | L42: 17
A43: 01 | B43: 宿迁经济技术开发区所属中小学校 | C43: 02 | D43: 小学语文教师 | E43: 9 | F43: 61 | G43: 唐颖 | H43: 130102010904 | I43: 合格 | J43: 77.00 | K43: 70.600 | L43: 18
A44: 01 | B44: 宿迁经济技术开发区所属中小学校 | C44: 02 | D44: 小学语文教师 | E44: 9 | F44: 67 | G44: 孙春雨 | H44: 130102010916 | I44: 合格 | J44: 72.52 | K44: 70.312 | L44: 19
A45: 01 | B45: 宿迁经济技术开发区所属中小学校 | C45: 02 | D45: 小学语文教师 | E45: 9 | F45: 65.5 | G45: 朱倩倩 | H45: 130102010902 | I45: 合格 | J45: 70.50 | K45: 68.500 | L45: 20
A46: 01 | B46: 宿迁经济技术开发区所属中小学校 | C46: 02 | D46: 小学语文教师 | E46: 9 | F46: 63.5 | G46: 向文璐 | H46: 130102010917 | I46: 合格 | J46: 71.22 | K46: 68.132 | L46: 21
A47: 01 | B47: 宿迁经济技术开发区所属中小学校 | C47: 02 | D47: 小学语文教师 | E47: 9 | F47: 58.5 | G47: 陈秀 | H47: 130102010912 | I47: 合格 | J47: 74.40 | K47: 68.040 | L47: 22
A48: 01 | B48: 宿迁经济技术开发区所属中小学校 | C48: 02 | D48: 小学语文教师 | E48: 9 | F48: 59.5 | G48: 翟晗颖 | H48: 130102010814 | I48: 合格 | J48: 73.46 | K48: 67.876 | L48: 23
A49: 01 | B49: 宿迁经济技术开发区所属中小学校 | C49: 02 | D49: 小学语文教师 | E49: 9 | F49: 59 | G49: 邹舟 | H49: 130102010919 | I49: 合格 | J49: 73.76 | K49: 67.856 | L49: 24
A50: 01 | B50: 宿迁经济技术开发区所属中小学校 | C50: 02 | D50: 小学语文教师 | E50: 9 | F50: 61 | G50: 王纪元 | H50: 130102010920 | I50: 合格 | J50: 71.66 | K50: 67.396 | L50: 25
A51: 01 | B51: 宿迁经济技术开发区所属中小学校 | C51: 02 | D51: 小学语文教师 | E51: 9 | F51: 58 | G51: 袁姗姗 | H51: 130102010820 | I51: 合格 | J51: 73.54 | K51: 67.324 | L51: 26
A52: 01 | B52: 宿迁经济技术开发区所属中小学校 | C52: 02 | D52: 小学语文教师 | E52: 9 | F52: 63.5 | G52: 陆巧珍 | H52: 130102010906 | I52: 合格 | K52: 缺考 | L52: 27
A53: 01 | B53: 宿迁经济技术开发区所属中小学校 | C53: 03 | D53: 小学数学教师 | E53: 11 | F53: 65 | G53: 胡梦颖 | H53: 130102010111 | I53: 合格 | J53: 89.78 | K53: =F53*0.4+J53*0.6 -> 79.868 | L53: 1 | M53: K
A54: 01 | B54: 宿迁经济技术开发区所属中小学校 | C54: 03 | D54: 小学数学教师 | E54: 11 | F54: 66 | G54: 冯霜 | H54: 130102010109 | I54: 合格 | J54: 85.68 | K54: 77.808 | L54: 2 | M54: K
A55: 01 | B55: 宿迁经济技术开发区所属中小学校 | C55: 03 | D55: 小学数学教师 | E55: 11 | F55: 68 | G55: 李婷 | H55: 130102010218 | I55: 合格 | J55: 82.92 | K55: 76.952 | L55: 3 | M55: K
A56: 01 | B56: 宿迁经济技术开发区所属中小学校 | C56: 03 | D56: 小学数学教师 | E56: 11 | F56: 71 | G56: 朱贺 | H56: 130102010118 | I56: 合格 | J56: 80.42 | K56: 76.652 | L56: 4 | M56: K
A57: 01 | B57: 宿迁经济技术开发区所属中小学校 | C57: 03 | D57: 小学数学教师 | E57: 11 | F57: 67 | G57: 李季红 | H57: 130102010103 | I57: 合格 | J57: 81.36 | K57: 75.616 | L57: 5 | M57: K
A58: 01 | B58: 宿迁经济技术开发区所属中小学校 | C58: 03 | D58: 小学数学教师 | E58: 11 | F58: 65.5 | G58: 杨柳 | H58: 130102010116 | I58: 合格 | J58: 81.76 | K58: 75.256 | L58: 6 | M58: K
A59: 01 | B59: 宿迁经济技术开发区所属中小学校 | C59: 03 | D59: 小学数学教师 | E59: 11 | F59: 59.5 | G59: 孙可 | H59: 130102010201 | I59: 合格 | J59: 85.56 | K59: 75.136 | L59: 7 | M59: K
A60: 01 | B60: 宿迁经济技术开发区所属中小学校 | C60: 03 | D60: 小学数学教师 | E60: 11 | F60: 68 | G60: 刘凯丽 | H60: 130102010212 | I60: 合格 | J60: 79.80 | K60: 75.080 | L60: 8 | M60: K
A61: 01 | B61: 宿迁经济技术开发区所属中小学校 | C61: 03 | D61: 小学数学教师 | E61: 11 | F61: 60 | G61: 顾于竺 | H61: 130102010314 | I61: 合格 | J61: 84.92 | K61: 74.952 | L61: 9 | M61: K
A62: 01 | B62: 宿迁经济技术开发区所属中小学校 | C62: 03 | D62: 小学数学教师 | E62: 11 | F62: 62 | G62: 丁若彬 | H62: 130102010113 | I62: 合格 | J62: 83.56 | K62: 74.936 | L62: 10 | M62: K
A63: 01 | B63: 宿迁经济技术开发区所属中小学校 | C63: 03 | D63: 小学数学教师 | E63: 11 | F63: 64 | G63: 李雯 | H63: 130102010210 | I63: 合格 | J63: 82.06 | K63: 74.836 | L63: 11 | M63: K
A64: 01 | B64: 宿迁经济技术开发区所属中小学校 | C64: 03 | D64: 小学数学教师 | E64: 11 | F64: 60 | G64: 林颜颜 | H64: 130102010305 | I64: 合格 | J64: 83.90 | K64: 74.340 | L64: 12
A65: 01 | B65: 宿迁经济技术开发区所属中小学校 | C65: 03 | D65: 小学数学教师 | E65: 11 | F65: 62.5 | G65: 曹满腾 | H65: 130102010104 | I65: 合格 | J65: 81.86 | K65: 74.116 | L65: 13
A66: 01 | B66: 宿迁经济技术开发区所属中小学校 | C66: 03 | D66: 小学数学教师 | E66: 11 | F66: 69 | G66: 李瑞 | H66: 130102010302 | I66: 合格 | J66: 77.36 | K66: 74.016 | L66: 14
A67: 01 | B67: 宿迁经济技术开发区所属中小学校 | C67: 03 | D67: 小学数学教师 | E67: 11 | F67: 54.5 | G67: 严梦凡 | H67: 130102010304 | I67: 合格 | J67: 86.62 | K67: 73.772 | L67: 15
A68: 01 | B68: 宿迁经济技术开发区所属中小学校 | C68: 03 | D68: 小学数学教师 | E68: 11 | F68: 55.5 | G68: 蔡蒙蒙 | H68: 130102010209 | I68: 合格 | J68: 84.54 | K68: 72.924 | L68: 16
A69: 01 | B69: 宿迁经济技术开发区所属中小学校 | C69: 03 | D69: 小学数学教师 | E69: 11 | F69: 63 | G69: 苗思语 | H69: 130102010215 | I69: 合格 | J69: 79.00 | K69: 72.600 | L69: 17
A70: 01 | B70: 宿迁经济技术开发区所属中小学校 | C70: 03 | D70: 小学数学教师 | E70: 11 | F70: 66 | G70: 魏凯文 | H70: 130102010106 | I70: 合格 | J70: 76.78 | K70: 72.468 | L70: 18
A71: 01 | B71: 宿迁经济技术开发区所属中小学校 | C71: 03 | D71: 小学数学教师 | E71: 11 | F71: 55 | G71: 南雪 | H71: 130102010217 | I71: 合格 | J71: 83.74 | K71: 72.244 | L71: 19
A72: 01 | B72: 宿迁经济技术开发区所属中小学校 | C72: 03 | D72: 小学数学教师 | E72: 11 | F72: 59 | G72: 王青洁 | H72: 130102010205 | I72: 合格 | J72: 80.92 | K72: 72.152 | L72: 20
A73: 01 | B73: 宿迁经济技术开发区所属中小学校 | C73: 03 | D73: 小学数学教师 | E73: 11 | F73: 63 | G73: 仲佳佳 | H73: 130102010108 | I73: 合格 | J73: 78.04 | K73: 72.024 | L73: 21
A74: 01 | B74: 宿迁经济技术开发区所属中小学校 | C74: 03 | D74: 小学数学教师 | E74: 11 | F74: 60 | G74: 杨心雨 | H74: 130102010114 | I74: 合格 | J74: 78.96 | K74: 71.376 | L74: 22
A75: 01 | B75: 宿迁经济技术开发区所属中小学校 | C75: 03 | D75: 小学数学教师 | E75: 11 | F75: 60 | G75: 常格 | H75: 130102010115 | I75: 合格 | J75: 78.32 | K75: 70.992 | L75: 23
A76: 01 | B76: 宿迁经济技术开发区所属中小学校 | C76: 03 | D76: 小学数学教师 | E76: 11 | F76: 54 | G76: 董悦 | H76: 130102010206 | I76: 合格 | J76: 82.00 | K76: 70.800 | L76: 24
A77: 01 | B77: 宿迁经济技术开发区所属中小学校 | C77: 03 | D77: 小学数学教师 | E77: 11 | F77: 64 | G77: 陈雨思 | H77: 130102010105 | I77: 合格 | J77: 75.04 | K77: 70.624 | L77: 25
A78: 01 | B78: 宿迁经济技术开发区所属中小学校 | C78: 03 | D78: 小学数学教师 | E78: 11 | F78: 59.5 | G78: 胡慧敏 | H78: 130102010214 | I78: 合格 | J78: 77.14 | K78: 70.084 | L78: 26
A79: 01 | B79: 宿迁经济技术开发区所属中小学校 | C79: 03 | D79: 小学数学教师 | E79: 11 | F79: 54.5 | G79: 朱洁 | H79: 130102010112 | I79: 合格 | J79: 78.74 | K79: 69.044 | L79: 27
A80: 01 | B80: 宿迁经济技术开发区所属中小学校 | C80: 03 | D80: 小学数学教师 | E80: 11 | F80: 59 | G80: 史牧冉 | H80: 130102010219 | I80: 合格 | J80: 75.72 | K80: 69.032 | L80: 28
A81: 01 | B81: 宿迁经济技术开发区所属中小学校 | C81: 03 | D81: 小学数学教师 | E81: 11 | F81: 55.5 | G81: 王艺璇 | H81: 130102010202 | I81: 合格 | J81: 77.12 | K81: 68.472 | L81: 29
A82: 01 | B82: 宿迁经济技术开发区所属中小学校 | C82: 03 | D82: 小学数学教师 | E82: 11 | F82: 54.5 | G82: 闫文轩 | H82: 130102010204 | I82: 合格 | J82: 74.00 | K82: 66.200 | L82: 30
A83: 01 | B83: 宿迁经济技术开发区所属中小学校 | C83: 03 | D83: 小学数学教师 | E83: 11 | F83: 54 | G83: 蔡欣豫 | H83: 130102010311 | I83: 合格 | J83: 74.02 | K83: 66.012 | L83: 31
A84: 01 | B84: 宿迁经济技术开发区所属中小学校 | C84: 03 | D84: 小学数学教师 | E84: 11 | F84: 58.5 | G84: 张怡 | H84: 130102010213 | I84: 合格 | J84: 70.50 | K84: 65.700 | L84: 32
A85: 01 | B85: 宿迁经济技术开发区所属中小学校 | C85: 03 | D85: 小学数学教师 | E85: 11 | F85: 59 | G85: 张妮妮 | H85: 130102010211 | I85: 合格 | K85: 缺考 | L85: 33
A86: 01 | B86: 宿迁经济技术开发区所属中小学校 | C86: 03 | D86: 小学数学教师 | E86: 11 | F86: 54 | G86: 韩露 | H86: 130102010315 | I86: 合格 | K86: 缺考 | L86: 34
A87: 01 | B87: 宿迁经济技术开发区所属中小学校 | C87: 03 | D87: 小学数学教师 | E87: 11 | F87: 54 | G87: 丁宇 | H87: 130102010318 | I87: 合格 | K87: 缺考 | L87: 35
A88: 01 | B88: 宿迁经济技术开发区所属中小学校 | C88: 04 | D88: 小学英语教师 | E88: 8 | F88: 83.5 | G88: 李海峰 | H88: 130102011302 | I88: 合格 | J88: 82.62 | K88: =F88*0.4+J88*0.6 -> 82.972 | L88: 1 | M88: K
A89: 01 | B89: 宿迁经济技术开发区所属中小学校 | C89: 04 | D89: 小学英语教师 | E89: 8 | F89: 85.5 | G89: 王丽雯 | H89: 130102011304 | I89: 合格 | J89: 80.76 | K89: 82.656 | L89: 2 | M89: K
A90: 01 | B90: 宿迁经济技术开发区所属中小学校 | C90: 04 | D90: 小学英语教师 | E90: 8 | F90: 79.5 | G90: 何嘉婧 | H90: 130102011405 | I90: 合格 | J90: 84.52 | K90: 82.512 | L90: 3 | M90: K
A91: 01 | B91: 宿迁经济技术开发区所属中小学校 | C91: 04 | D91: 小学英语教师 | E91: 8 | F91: 82.5 | G91: 沈一诺 | H91: 130102011407 | I91: 合格 | J91: 79.46 | K91: 80.676 | L91: 4 | M91: K
A92: 01 | B92: 宿迁经济技术开发区所属中小学校 | C92: 04 | D92: 小学英语教师 | E92: 8 | F92: 70.5 | G92: 盛晨 | H92: 130102011307 | I92: 合格 | J92: 86.60 | K92: 80.160 | L92: 5 | M92: K
A93: 01 | B93: 宿迁经济技术开发区所属中小学校 | C93: 04 | D93: 小学英语教师 | E93: 8 | F93: 80 | G93: 秦缘 | H93: 130102011320 | I93: 合格 | J93: 79.20 | K93: 79.520 | L93: 6 | M93: K
A94: 01 | B94: 宿迁经济技术开发区所属中小学校 | C94: 04 | D94: 小学英语教师 | E94: 8 | F94: 78.5 | G94: 郝小娟 | H94: 130102011312 | I94: 合格 | J94: 78.68 | K94: 78.608 | L94: 7 | M94: K
A95: 01 | B95: 宿迁经济技术开发区所属中小学校 | C95: 04 | D95: 小学英语教师 | E95: 8 | F95: 74.5 | G95: 奚威 | H95: 130102011403 | I95: 合格 | J95: 80.98 | K95: 78.388 | L95: 8 | M95: K
A96: 01 | B96: 宿迁经济技术开发区所属中小学校 | C96: 04 | D96: 小学英语教师 | E96: 8 | F96: 69 | G96: 吴静 | H96: 130102011317 | I96: 合格 | J96: 84.60 | K96: 78.360 | L96: 9
A97: 01 | B97: 宿迁经济技术开发区所属中小学校 | C97: 04 | D97: 小学英语教师 | E97: 8 | F97: 73 | G97: 郭瑶琪 | H97: 130102011301 | I97: 合格 | J97: 80.72 | K97: 77.632 | L97: 10
A98: 01 | B98: 宿迁经济技术开发区所属中小学校 | C98: 04 | D98: 小学英语教师 | E98: 8 | F98: 67.5 | G98: 何淑文 | H98: 130102011306 | I98: 合格 | J98: 83.08 | K98: 76.848 | L98: 11
A99: 01 | B99: 宿迁经济技术开发区所属中小学校 | C99: 04 | D99: 小学英语教师 | E99: 8 | F99: 70 | G99: 张晨 | H99: 130102011310 | I99: 合格 | J99: 78.78 | K99: 75.268 | L99: 12
A100: 01 | B100: 宿迁经济技术开发区所属中小学校 | C100: 04 | D100: 小学英语教师 | E100: 8 | F100: 62.5 | G100: 贡丹 | H100: 130102011319 | I100: 合格 | J100: 81.44 | K100: 73.864 | L100: 13
A101: 01 | B101: 宿迁经济技术开发区所属中小学校 | C101: 04 | D101: 小学英语教师 | E101: 8 | F101: 77 | G101: 杨杨 | H101: 130102011410 | I101: 合格 | J101: 67.38 | K101: 71.228 | L101: 14
A102: 01 | B102: 宿迁经济技术开发区所属中小学校 | C102: 04 | D102: 小学英语教师 | E102: 8 | F102: 69 | G102: 李艳婷 | H102: 130102011404 | I102: 合格 | J102: 71.70 | K102: 70.620 | L102: 15
A103: 01 | B103: 宿迁经济技术开发区所属中小学校 | C103: 04 | D103: 小学英语教师 | E103: 8 | F103: 61.5 | G103: 陈苏韵 | H103: 130102011401 | I103: 合格 | J103: 75.18 | K103: 69.708 | L103: 16
A104: 01 | B104: 宿迁经济技术开发区所属中小学校 | C104: 04 | D104: 小学英语教师 | E104: 8 | F104: 65 | G104: 余骑 | H104: 130102011406 | I104: 合格 | J104: 72.12 | K104: 69.272 | L104: 17
A105: 01 | B105: 宿迁经济技术开发区所属中小学校 | C105: 04 | D105: 小学英语教师 | E105: 8 | F105: 65.5 | G105: 张紫晴 | H105: 130102011308 | I105: 合格 | J105: 70.30 | K105: 68.380 | L105: 18
A106: 01 | B106: 宿迁经济技术开发区所属中小学校 | C106: 04 | D106: 小学英语教师 | E106: 8 | F106: 61.5 | G106: 孙宝宝 | H106: 130102011411 | I106: 合格 | J106: 66.18 | K106: 64.308 | L106: 19
A107: 01 | B107: 宿迁经济技术开发区所属中小学校 | C107: 04 | D107: 小学英语教师 | E107: 8 | F107: 83.5 | G107: 郭彪 | H107: 130102011315 | I107: 合格 | K107: 缺考 | L107: 20
A108: 01 | B108: 宿迁经济技术开发区所属中小学校 | C108: 04 | D108: 小学英语教师 | E108: 8 | F108: 80.5 | G108: 徐牧云 | H108: 130102011314 | I108: 合格 | K108: 缺考 | L108: 21
A109: 01 | B109: 宿迁经济技术开发区所属中小学校 | C109: 04 | D109: 小学英语教师 | E109: 8 | F109: 73.5 | G109: 葛盈君 | H109: 130102011309 | I109: 合格 | K109: 缺考 | L109: 22
A110: 01 | B110: 宿迁经济技术开发区所属中小学校 | C110: 04 | D110: 小学英语教师 | E110: 8 | F110: 69 | G110: 马西云 | H110: 130102011311 | I110: 合格 | K110: 缺考 | L110: 23
A111: 01 | B111: 宿迁经济技术开发区所属中小学校 | C111: 04 | D111: 小学英语教师 | E111: 8 | F111: 61 | G111: 刘佳 | H111: 130102011402 | I111: 合格 | K111: 缺考 | L111: 24
A112: 01 | B112: 宿迁经济技术开发区所属中小学校 | C112: 05 | D112: 小学信息技术教师 | E112: 1 | F112: 65.5 | G112: 曹家铭 | H112: 130102011014 | I112: 合格 | J112: 76.54 | K112: =F112*0.4+J112*0.6 -> 72.124 | L112: 1 | M112: K
A113: 01 | B113: 宿迁经济技术开发区所属中小学校 | C113: 05 | D113: 小学信息技术教师 | E113: 1 | F113: 71 | G113: 郝妍妍 | H113: 130102011016 | I113: 合格 | K113: 缺考 | L113: 2
A114: 01 | B114: 宿迁经济技术开发区所属中小学校 | C114: 05 | D114: 小学信息技术教师 | E114: 1 | F114: 64 | G114: 何妍妍 | H114: 130102011015 | I114: 合格 | K114: 缺考 | L114: 3
A115: 01 | B115: 宿迁经济技术开发区所属中小学校 | C115: 06 | D115: 初中语文教师 | E115: 10 | F115: 79.5 | G115: 孙楠 | H115: 130102011112 | I115: 合格 | J115: 82.40 | K115: =F115*0.4+J115*0.6 -> 81.240 | L115: 1 | M115: K
A116: 01 | B116: 宿迁经济技术开发区所属中小学校 | C116: 06 | D116: 初中语文教师 | E116: 10 | F116: 83.5 | G116: 刘纯子 | H116: 130102011211 | I116: 合格 | J116: 79.56 | K116: 81.136 | L116: 2 | M116: K
A117: 01 | B117: 宿迁经济技术开发区所属中小学校 | C117: 06 | D117: 初中语文教师 | E117: 10 | F117: 81 | G117: 周冰倩 | H117: 130102011102 | I117: 合格 | J117: 80.70 | K117: 80.820 | L117: 3 | M117: K
A118: 01 | B118: 宿迁经济技术开发区所属中小学校 | C118: 06 | D118: 初中语文教师 | E118: 10 | F118: 75 | G118: 慎洳鋆 | H118: 130102011120 | I118: 合格 | J118: 83.40 | K118: 80.040 | L118: 4 | M118: K
A119: 01 | B119: 宿迁经济技术开发区所属中小学校 | C119: 06 | D119: 初中语文教师 | E119: 10 | F119: 85 | G119: 韩文 | H119: 130102011206 | I119: 合格 | J119: 76.64 | K119: 79.984 | L119: 5 | M119: K
A120: 01 | B120: 宿迁经济技术开发区所属中小学校 | C120: 06 | D120: 初中语文教师 | E120: 10 | F120: 81 | G120: 王艺澄 | H120: 130102011203 | I120: 合格 | J120: 78.74 | K120: 79.644 | L120: 6 | M120: K
A121: 01 | B121: 宿迁经济技术开发区所属中小学校 | C121: 06 | D121: 初中语文教师 | E121: 10 | F121: 79.5 | G121: 贾雅兰 | H121: 130102011204 | I121: 合格 | J121: 78.94 | K121: 79.164 | L121: 7 | M121: K
A122: 01 | B122: 宿迁经济技术开发区所属中小学校 | C122: 06 | D122: 初中语文教师 | E122: 10 | F122: 81.5 | G122: 孙瑞敏 | H122: 130102011210 | I122: 合格 | J122: 75.86 | K122: 78.116 | L122: 8 | M122: K
A123: 01 | B123: 宿迁经济技术开发区所属中小学校 | C123: 06 | D123: 初中语文教师 | E123: 10 | F123: 79.5 | G123: 杨旭 | H123: 130102011118 | I123: 合格 | J123: 76.36 | K123: 77.616 | L123: 9 | M123: K
A124: 01 | B124: 宿迁经济技术开发区所属中小学校 | C124: 06 | D124: 初中语文教师 | E124: 10 | F124: 83.5 | G124: 郭嘉 | H124: 130102011208 | I124: 合格 | J124: 72.86 | K124: 77.116 | L124: 10 | M124: K
A125: 01 | B125: 宿迁经济技术开发区所属中小学校 | C125: 06 | D125: 初中语文教师 | E125: 10 | F125: 73.5 | G125: 丁岩 | H125: 130102011107 | I125: 合格 | J125: 79.50 | K125: 77.100 | L125: 11
A126: 01 | B126: 宿迁经济技术开发区所属中小学校 | C126: 06 | D126: 初中语文教师 | E126: 10 | F126: 81.5 | G126: 臧雨蒙 | H126: 130102011212 | I126: 合格 | J126: 73.90 | K126: 76.940 | L126: 12
A127: 01 | B127: 宿迁经济技术开发区所属中小学校 | C127: 06 | D127: 初中语文教师 | E127: 10 | F127: 84.5 | G127: 仲敏 | H127: 130102011105 | I127: 合格 | J127: 71.24 | K127: 76.544 | L127: 13
A128: 01 | B128: 宿迁经济技术开发区所属中小学校 | C128: 06 | D128: 初中语文教师 | E128: 10 | F128: 81 | G128: 晁笑笑 | H128: 130102011209 | I128: 合格 | J128: 73.54 | K128: 76.524 | L128: 14
A129: 01 | B129: 宿迁经济技术开发区所属中小学校 | C129: 06 | D129: 初中语文教师 | E129: 10 | F129: 78.5 | G129: 朱文青 | H129: 130102011205 | I129: 合格 | J129: 73.70 | K129: 75.620 | L129: 15
A130: 01 | B130: 宿迁经济技术开发区所属中小学校 | C130: 06 | D130: 初中语文教师 | E130: 10 | F130: 75.5 | G130: 杨冉冉 | H130: 130102011201 | I130: 合格 | J130: 74.84 | K130: 75.104 | L130: 16
A131: 01 | B131: 宿迁经济技术开发区所属中小学校 | C131: 06 | D131: 初中语文教师 | E131: 10 | F131: 76.5 | G131: 郑安贤 | H131: 130102011117 | I131: 合格 | J131: 73.06 | K131: 74.436 | L131: 17
A132: 01 | B132: 宿迁经济技术开发区所属中小学校 | C132: 06 | D132: 初中语文教师 | E132: 10 | F132: 78 | G132: 胡新宇 | H132: 130102011116 | I132: 合格 | J132: 71.74 | K132: 74.244 | L132: 18
A133: 01 | B133: 宿迁经济技术开发区所属中小学校 | C133: 06 | D133: 初中语文教师 | E133: 10 | F133: 75 | G133: 李悦 | H133: 130102011103 | I133: 合格 | J133: 73.60 | K133: 74.160 | L133: 19
A134: 01 | B134: 宿迁经济技术开发区所属中小学校 | C134: 06 | D134: 初中语文教师 | E134: 10 | F134: 79 | G134: 周晴 | H134: 130102011202 | I134: 合格 | J134: 70.90 | K134: 74.140 | L134: 20
A135: 01 | B135: 宿迁经济技术开发区所属中小学校 | C135: 06 | D135: 初中语文教师 | E135: 10 | F135: 74 | G135: 刘洋 | H135: 130102011119 | I135: 合格 | J135: 74.18 | K135: 74.108 | L135: 21
A136: 01 | B136: 宿迁经济技术开发区所属中小学校 | C136: 06 | D136: 初中语文教师 | E136: 10 | F136: 79 | G136: 郁静娴 | H136: 130102011110 | I136: 合格 | J136: 70.40 | K136: 73.840 | L136: 22
A137: 01 | B137: 宿迁经济技术开发区所属中小学校 | C137: 06 | D137: 初中语文教师 | E137: 10 | F137: 71 | G137: 程 岩 | H137: 130102011111 | I137: 合格 | J137: 74.92 | K137: 73.352 | L137: 23
A138: 01 | B138: 宿迁经济技术开发区所属中小学校 | C138: 06 | D138: 初中语文教师 | E138: 10 | F138: 75.5 | G138: 陈玉 | H138: 130102011104 | I138: 合格 | J138: 70.76 | K138: 72.656 | L138: 24
A139: 01 | B139: 宿迁经济技术开发区所属中小学校 | C139: 06 | D139: 初中语文教师 | E139: 10 | F139: 70 | G139: 胡楠 | H139: 130102011101 | I139: 合格 | J139: 73.68 | K139: 72.208 | L139: 25
A140: 01 | B140: 宿迁经济技术开发区所属中小学校 | C140: 06 | D140: 初中语文教师 | E140: 10 | F140: 70.5 | G140: 胡宇琦 | H140: 130102011114 | I140: 合格 | J140: 73.30 | K140: 72.180 | L140: 26
A141: 01 | B141: 宿迁经济技术开发区所属中小学校 | C141: 06 | D141: 初中语文教师 | E141: 10 | F141: 68 | G141: 荣明明 | H141: 130102011108 | I141: 合格 | J141: 68.62 | K141: 68.372 | L141: 27
A142: 01 | B142: 宿迁经济技术开发区所属中小学校 | C142: 06 | D142: 初中语文教师 | E142: 10 | F142: 75.5 | G142: 张迎雪 | H142: 130102011115 | I142: 合格 | K142: 缺考 | L142: 28
A143: 01 | B143: 宿迁经济技术开发区所属中小学校 | C143: 06 | D143: 初中语文教师 | E143: 10 | F143: 72.5 | G143: 王颖 | H143: 130102011109 | I143: 合格 | K143: 缺考 | L143: 29
A144: 01 | B144: 宿迁经济技术开发区所属中小学校 | C144: 06 | D144: 初中语文教师 | E144: 10 | F144: 70.5 | G144: 吴箫 | H144: 130102011207 | I144: 合格 | K144: 缺考 | L144: 30
A145: 01 | B145: 宿迁经济技术开发区所属中小学校 | C145: 07 | D145: 初中数学教师 | E145: 9 | F145: 71.5 | G145: 王雨辰 | H145: 130102010411 | I145: 合格 | J145: 84.40 | K145: =F145*0.4+J145*0.6 -> 79.240 | L145: 1 | M145: K
A146: 01 | B146: 宿迁经济技术开发区所属中小学校 | C146: 07 | D146: 初中数学教师 | E146: 9 | F146: 63.5 | G146: 陈少康 | H146: 130102010408 | I146: 合格 | J146: 87.82 | K146: 78.092 | L146: 2 | M146: K
A147: 01 | B147: 宿迁经济技术开发区所属中小学校 | C147: 07 | D147: 初中数学教师 | E147: 9 | F147: 74 | G147: 王梦远 | H147: 130102010505 | I147: 合格 | J147: 76.06 | K147: 75.236 | L147: 3 | M147: K
A148: 01 | B148: 宿迁经济技术开发区所属中小学校 | C148: 07 | D148: 初中数学教师 | E148: 9 | F148: 66 | G148: 杜晗旭 | H148: 130102010507 | I148: 合格 | J148: 79.90 | K148: 74.340 | L148: 4 | M148: K
A149: 01 | B149: 宿迁经济技术开发区所属中小学校 | C149: 07 | D149: 初中数学教师 | E149: 9 | F149: 62 | G149: 王桐 | H149: 130102010506 | I149: 合格 | J149: 81.14 | K149: 73.484 | L149: 5 | M149: K
A150: 01 | B150: 宿迁经济技术开发区所属中小学校 | C150: 07 | D150: 初中数学教师 | E150: 9 | F150: 73 | G150: 杨卓 | H150: 130102010410 | I150: 合格 | J150: 73.80 | K150: 73.480 | L150: 6 | M150: K
A151: 01 | B151: 宿迁经济技术开发区所属中小学校 | C151: 07 | D151: 初中数学教师 | E151: 9 | F151: 62 | G151: 陈鹏 | H151: 130102010412 | I151: 合格 | J151: 77.12 | K151: 71.072 | L151: 7 | M151: K
A152: 01 | B152: 宿迁经济技术开发区所属中小学校 | C152: 07 | D152: 初中数学教师 | E152: 9 | F152: 61.5 | G152: 王一凡 | H152: 130102010406 | I152: 合格 | J152: 74.00 | K152: 69.000 | L152: 8 | M152: K
A153: 01 | B153: 宿迁经济技术开发区所属中小学校 | C153: 07 | D153: 初中数学教师 | E153: 9 | F153: 61.5 | G153: 王义驰 | H153: 130102010414 | I153: 合格 | J153: 72.02 | K153: 67.812 | L153: 9 | M153: K
A154: 01 | B154: 宿迁经济技术开发区所属中小学校 | C154: 07 | D154: 初中数学教师 | E154: 9 | F154: 66 | G154: 周冬 | H154: 130102010409 | I154: 合格 | J154: 68.20 | K154: 67.320 | L154: 10
A155: 01 | B155: 宿迁经济技术开发区所属中小学校 | C155: 07 | D155: 初中数学教师 | E155: 9 | F155: 55 | G155: 陈昱 | H155: 130102010509 | I155: 合格 | J155: 75.10 | K155: 67.060 | L155: 11
A156: 01 | B156: 宿迁经济技术开发区所属中小学校 | C156: 07 | D156: 初中数学教师 | E156: 9 | F156: 63 | G156: 马瑜聪 | H156: 130102010415 | I156: 合格 | J156: 69.54 | K156: 66.924 | L156: 12
A157: 01 | B157: 宿迁经济技术开发区所属中小学校 | C157: 07 | D157: 初中数学教师 | E157: 9 | F157: 65 | G157: 牛志远 | H157: 130102010404 | I157: 合格 | J157: 67.94 | K157: 66.764 | L157: 13
A158: 01 | B158: 宿迁经济技术开发区所属中小学校 | C158: 07 | D158: 初中数学教师 | E158: 9 | F158: 54 | G158: 李晚芳 | H158: 130102010403 | I158: 合格 | J158: 74.50 | K158: 66.300 | L158: 14
A159: 01 | B159: 宿迁经济技术开发区所属中小学校 | C159: 07 | D159: 初中数学教师 | E159: 9 | F159: 64 | G159: 王璇 | H159: 130102010407 | I159: 合格 | J159: 62.40 | K159: 63.040 | L159: 15
A160: 01 | B160: 宿迁经济技术开发区所属中小学校 | C160: 07 | D160: 初中数学教师 | E160: 9 | F160: 51.5 | G160: 常越 | H160: 130102010413 | I160: 合格 | J160: 68.20 | K160: 61.520 | L160: 16
A161: 01 | B161: 宿迁经济技术开发区所属中小学校 | C161: 07 | D161: 初中数学教师 | E161: 9 | F161: 58 | G161: 管倩倩 | H161: 130102010419 | I161: 合格 | J161: 62.50 | K161: 60.700 | L161: 17
A162: 01 | B162: 宿迁经济技术开发区所属中小学校 | C162: 07 | D162: 初中数学教师 | E162: 9 | F162: 76.5 | G162: 魏宗洁 | H162: 130102010405 | I162: 合格 | K162: 缺考 | L162: 18
A163: 01 | B163: 宿迁经济技术开发区所属中小学校 | C163: 07 | D163: 初中数学教师 | E163: 9 | F163: 71.5 | G163: 庄姗 | H163: 130102010503 | I163: 合格 | K163: 缺考 | L163: 19
A164: 01 | B164: 宿迁经济技术开发区所属中小学校 | C164: 07 | D164: 初中数学教师 | E164: 9 | F164: 69 | G164: 王露然 | H164: 130102010504 | I164: 合格 | K164: 缺考 | L164: 20
A165: 01 | B165: 宿迁经济技术开发区所属中小学校 | C165: 07 | D165: 初中数学教师 | E165: 9 | F165: 58 | G165: 朱成荣 | H165: 130102010401 | I165: 合格 | K165: 缺考 | L165: 21
A166: 01 | B166: 宿迁经济技术开发区所属中小学校 | C166: 07 | D166: 初中数学教师 | E166: 9 | F166: 55.5 | G166: 朱笛 | H166: 130102010418 | I166: 合格 | K166: 缺考 | L166: 22
A167: 01 | B167: 宿迁经济技术开发区所属中小学校 | C167: 07 | D167: 初中数学教师 | E167: 9 | F167: 51.5 | G167: 杨森 | H167: 130102010508 | I167: 合格 | K167: 缺考 | L167: 23
A168: 01 | B168: 宿迁经济技术开发区所属中小学校 | C168: 07 | D168: 初中数学教师 | E168: 9 | F168: 50.5 | G168: 杨艳苹 | H168: 130102010416 | I168: 合格 | K168: 缺考 | L168: 24
A169: 01 | B169: 宿迁经济技术开发区所属中小学校 | C169: 08 | D169: 初中英语教师 | E169: 8 | F169: 84.5 | G169: 罗雯 | H169: 130102011506 | I169: 合格 | J169: 79.70 | K169: =F169*0.4+J169*0.6 -> 81.620 | L169: 1 | M169: K
A170: 01 | B170: 宿迁经济技术开发区所属中小学校 | C170: 08 | D170: 初中英语教师 | E170: 8 | F170: 80.5 | G170: 孙帆 | H170: 130102011502 | I170: 合格 | J170: 81.98 | K170: 81.388 | L170: 2 | M170: K
A171: 01 | B171: 宿迁经济技术开发区所属中小学校 | C171: 08 | D171: 初中英语教师 | E171: 8 | F171: 85 | G171: 高修扬 | H171: 130102011515 | I171: 合格 | J171: 77.12 | K171: 80.272 | L171: 3 | M171: K
A172: 01 | B172: 宿迁经济技术开发区所属中小学校 | C172: 08 | D172: 初中英语教师 | E172: 8 | F172: 87.5 | G172: 孙洁 | H172: 130102011512 | I172: 合格 | J172: 74.84 | K172: 79.904 | L172: 4 | M172: K
A173: 01 | B173: 宿迁经济技术开发区所属中小学校 | C173: 08 | D173: 初中英语教师 | E173: 8 | F173: 80 | G173: 马利雯 | H173: 130102011504 | I173: 合格 | J173: 75.56 | K173: 77.336 | L173: 5 | M173: K
A174: 01 | B174: 宿迁经济技术开发区所属中小学校 | C174: 08 | D174: 初中英语教师 | E174: 8 | F174: 76.5 | G174: 倪静 | H174: 130102011605 | I174: 合格 | J174: 76.42 | K174: 76.452 | L174: 6 | M174: K
A175: 01 | B175: 宿迁经济技术开发区所属中小学校 | C175: 08 | D175: 初中英语教师 | E175: 8 | F175: 77 | G175: 崔竹 | H175: 130102011508 | I175: 合格 | J175: 75.14 | K175: 75.884 | L175: 7 | M175: K
A176: 01 | B176: 宿迁经济技术开发区所属中小学校 | C176: 08 | D176: 初中英语教师 | E176: 8 | F176: 73 | G176: 佘傲立 | H176: 130102011519 | I176: 合格 | J176: 77.10 | K176: 75.460 | L176: 8 | M176: K
A177: 01 | B177: 宿迁经济技术开发区所属中小学校 | C177: 08 | D177: 初中英语教师 | E177: 8 | F177: 79.5 | G177: 高能婕 | H177: 130102011604 | I177: 合格 | J177: 71.88 | K177: 74.928 | L177: 9
A178: 01 | B178: 宿迁经济技术开发区所属中小学校 | C178: 08 | D178: 初中英语教师 | E178: 8 | F178: 71.5 | G178: 孙雯慧 | H178: 130102011518 | I178: 合格 | J178: 73.40 | K178: 72.640 | L178: 10
A179: 01 | B179: 宿迁经济技术开发区所属中小学校 | C179: 08 | D179: 初中英语教师 | E179: 8 | F179: 73.5 | G179: 张慧 | H179: 130102011517 | I179: 合格 | J179: 71.10 | K179: 72.060 | L179: 11
A180: 01 | B180: 宿迁经济技术开发区所属中小学校 | C180: 08 | D180: 初中英语教师 | E180: 8 | F180: 60 | G180: 王娜颖 | H180: 130102011520 | I180: 合格 | J180: 79.16 | K180: 71.496 | L180: 12
A181: 01 | B181: 宿迁经济技术开发区所属中小学校 | C181: 08 | D181: 初中英语教师 | E181: 8 | F181: 67.5 | G181: 李琪琪 | H181: 130102011510 | I181: 合格 | J181: 72.42 | K181: 70.452 | L181: 13
A182: 01 | B182: 宿迁经济技术开发区所属中小学校 | C182: 08 | D182: 初中英语教师 | E182: 8 | F182: 59 | G182: 朱晓燕 | H182: 130102011511 | I182: 合格 | J182: 74.00 | K182: 68.000 | L182: 14
A183: 01 | B183: 宿迁经济技术开发区所属中小学校 | C183: 08 | D183: 初中英语教师 | E183: 8 | F183: 84.5 | G183: 林逸萱 | H183: 130102011507 | I183: 合格 | K183: 缺考 | L183: 15
A184: 01 | B184: 宿迁经济技术开发区所属中小学校 | C184: 08 | D184: 初中英语教师 | E184: 8 | F184: 82 | G184: 张淑舒 | H184: 130102011501 | I184: 合格 | K184: 缺考 | L184: 16
A185: 01 | B185: 宿迁经济技术开发区所属中小学校 | C185: 08 | D185: 初中英语教师 | E185: 8 | F185: 80 | G185: 王晓宣 | H185: 130102011601 | I185: 合格 | K185: 缺考 | L185: 17
A186: 01 | B186: 宿迁经济技术开发区所属中小学校 | C186: 08 | D186: 初中英语教师 | E186: 8 | F186: 78.5 | G186: 姜盘 | H186: 130102011503 | I186: 合格 | K186: 缺考 | L186: 18
A187: 01 | B187: 宿迁经济技术开发区所属中小学校 | C187: 08 | D187: 初中英语教师 | E187: 8 | F187: 71 | G187: 包小婧 | H187: 130102011509 | I187: 合格 | K187: 缺考 | L187: 19
A188: 01 | B188: 宿迁经济技术开发区所属中小学校 | C188: 08 | D188: 初中英语教师 | E188: 8 | F188: 68 | G188: 张路瑶 | H188: 130102011602 | I188: 合格 | K188: 缺考 | L188: 20
A189: 01 | B189: 宿迁经济技术开发区所属中小学校 | C189: 08 | D189: 初中英语教师 | E189: 8 | F189: 62.5 | G189: 徐昌孺 | H189: 130102011603 | I189: 合格 | K189: 缺考 | L189: 21
A190: 01 | B190: 宿迁经济技术开发区所属中小学校 | C190: 09 | D190: 初中物理教师 | E190: 1 | F190: 50.5 | G190: 曹天玥 | H190: 130102011610 | I190: 合格 | J190: 80.90 | K190: =F190*0.4+J190*0.6 -> 68.740 | L190: 1 | M190: K
A191: 01 | B191: 宿迁经济技术开发区所属中小学校 | C191: 09 | D191: 初中物理教师 | E191: 1 | F191: 51 | G191: 闫颖 | H191: 130102011606 | I191: 合格 | K191: 缺考 | L191: 2
A192: 01 | B192: 宿迁经济技术开发区所属中小学校 | C192: 10 | D192: 初中历史教师 | E192: 2 | F192: 82 | G192: 李英瑛 | H192: 130102011412 | I192: 合格 | J192: 81.04 | K192: =F192*0.4+J192*0.6 -> 81.424 | L192: 1 | M192: K
A193: 01 | B193: 宿迁经济技术开发区所属中小学校 | C193: 10 | D193: 初中历史教师 | E193: 2 | F193: 68.5 | G193: 高朦 | H193: 130102011413 | I193: 合格 | J193: 80.56 | K193: 75.736 | L193: 2 | M193: K
A194: 01 | B194: 宿迁经济技术开发区所属中小学校 | C194: 10 | D194: 初中历史教师 | E194: 2 | F194: 65.5 | G194: 王娜 | H194: 130102011416 | I194: 合格 | J194: 77.46 | K194: 72.676 | L194: 3
A195: 01 | B195: 宿迁经济技术开发区所属中小学校 | C195: 10 | D195: 初中历史教师 | E195: 2 | F195: 52.5 | G195: 朱康迪 | H195: 130102011414 | I195: 合格 | J195: 77.76 | K195: 67.656 | L195: 4
A196: 01 | B196: 宿迁经济技术开发区所属中小学校 | C196: 10 | D196: 初中历史教师 | E196: 2 | F196: 64 | G196: 钟继超 | H196: 130102011417 | I196: 合格 | K196: 缺考 | L196: 5
A197: 01 | B197: 宿迁经济技术开发区所属中小学校 | C197: 10 | D197: 初中历史教师 | E197: 2 | F197: 55.5 | G197: 马萍 | H197: 130102011415 | I197: 合格 | K197: 缺考 | L197: 6
A198: 01 | B198: 宿迁经济技术开发区所属中小学校 | C198: 11 | D198: 初中地理教师 | E198: 1 | F198: 80 | G198: 丁明达 | H198: 130102011612 | I198: 合格 | J198: 78.96 | K198: 79.376 | L198: 1 | M198: K
A199: 01 | B199: 宿迁经济技术开发区所属中小学校 | C199: 11 | D199: 初中地理教师 | E199: 1 | F199: 76.5 | G199: 宋明凯 | H199: 130102011613 | I199: 合格 | J199: 80.12 | K199: 78.672 | L199: 2
A200: 01 | B200: 宿迁经济技术开发区所属中小学校 | C200: 11 | D200: 初中地理教师 | E200: 1 | F200: 77 | G200: 张子怡 | H200: 130102011611 | I200: 合格 | K200: 缺考 | L200: 3
... 18 more rows
